[Event "Titled Tuesday Blitz April 19 Late 2022"]
[White "Gomez Dieguez, David"]
[Black "Ingebretsen, Jens E"]
[WhiteFideId "22223630"]
[BlackFideId "1522965"]
[WhiteElo "2115"]
[BlackElo "2072"]
[Result "1-0"]
[Round "01"]
[TimeControl "180+1"]
[Date "2022.04.19"]
[WhiteClock "0:00:10"]
[BlackClock "0:00:08"]

1. c4 {[%clk 0:03:00]}  c6 {[%clk 0:02:59]} 2. Nf3 {[%clk 0:03:00]}  d5 {[%clk 0:03:00]} 3. e3 {[%clk 0:03:01]}  Nf6 {[%clk 0:03:00]} 4. Nc3 {[%clk 0:03:00]}  g6 {[%clk 0:03:00]} 5. d4 {[%clk 0:02:59]}  Bg7 {[%clk 0:03:01]} 6. Be2 {[%clk 0:02:59]}  O-O {[%clk 0:03:01]} 7. O-O {[%clk 0:02:59]}  Bf5 {[%clk 0:02:59]} 8. Qb3 {[%clk 0:02:58]}  Qb6 {[%clk 0:02:59]} 9. Bd2 {[%clk 0:02:54]}  Nbd7 {[%clk 0:02:52]} 10. cxd5 {[%clk 0:02:53]}  Qxb3 {[%clk 0:02:51]} 11. axb3 {[%clk 0:02:52]}  cxd5 {[%clk 0:02:50]} 12. Rfc1 {[%clk 0:02:43]}  a6 {[%clk 0:02:46]} 13. Na4 {[%clk 0:02:32]}  Rac8 {[%clk 0:02:45]} 14. Bb4 {[%clk 0:02:18]}  Bc2 {[%clk 0:02:07]} 15. Bxe7 {[%clk 0:02:09]}  Rfe8 {[%clk 0:02:07]} 16. Bxf6 {[%clk 0:02:03]}  Bxf6 {[%clk 0:02:02]} 17. Bd1 {[%clk 0:02:03]}  Bxd1 {[%clk 0:01:54]} 18. Rxd1 {[%clk 0:02:04]}  Rc2 {[%clk 0:01:51]} 19. Ne1 {[%clk 0:01:56]}  Rc7 {[%clk 0:01:49]} 20. Nd3 {[%clk 0:01:48]}  Nb8 {[%clk 0:01:39]} 21. Nb6 {[%clk 0:01:43]}  Rd8 {[%clk 0:01:36]} 22. Rac1 {[%clk 0:01:42]}  Nc6 {[%clk 0:01:28]} 23. h3 {[%clk 0:01:37]}  Rd6 {[%clk 0:01:18]} 24. Nf4 {[%clk 0:01:28]}  Re7 {[%clk 0:00:53]} 25. Nc8 {[%clk 0:01:19]}  Red7 {[%clk 0:00:51]} 26. Nxd6 {[%clk 0:01:18]}  Rxd6 {[%clk 0:00:51]} 27. Rc5 {[%clk 0:01:18]}  Ne7 {[%clk 0:00:49]} 28. Rdc1 {[%clk 0:01:15]}  Rb6 {[%clk 0:00:48]} 29. Nxd5 {[%clk 0:01:09]}  Nxd5 {[%clk 0:00:48]} 30. Rxd5 {[%clk 0:01:10]}  Rxb3 {[%clk 0:00:49]} 31. Rc8+ {[%clk 0:01:04]}  Kg7 {[%clk 0:00:49]} 32. Rc2 {[%clk 0:01:05]}  b5 {[%clk 0:00:47]} 33. Kf1 {[%clk 0:00:44]}  h5 {[%clk 0:00:36]} 34. e4 {[%clk 0:00:42]}  a5 {[%clk 0:00:31]} 35. e5 {[%clk 0:00:42]}  Bg5 {[%clk 0:00:31]} 36. g3 {[%clk 0:00:35]}  h4 {[%clk 0:00:30]} 37. f4 {[%clk 0:00:31]}  Bh6 {[%clk 0:00:30]} 38. gxh4 {[%clk 0:00:23]}  Bxf4 {[%clk 0:00:31]} 39. Rcc5 {[%clk 0:00:12]}  Rf3+ {[%clk 0:00:30]} 40. Ke2 {[%clk 0:00:12]}  Re3+ {[%clk 0:00:31]} 41. Kf2 {[%clk 0:00:12]}  b4 {[%clk 0:00:30]} 42. Rxa5 {[%clk 0:00:12]}  Rb3 {[%clk 0:00:31]} 43. Rdb5 {[%clk 0:00:10]}  Rxb2+ {[%clk 0:00:30]} 44. Kf3 {[%clk 0:00:10]}  Bd2 {[%clk 0:00:29]} 45. h5 {[%clk 0:00:10]}  gxh5 {[%clk 0:00:29]} 46. d5 {[%clk 0:00:09]}  Rb3+ {[%clk 0:00:29]} 47. Ke2 {[%clk 0:00:09]}  Bf4 {[%clk 0:00:27]} 48. e6 {[%clk 0:00:09]}  fxe6 {[%clk 0:00:26]} 49. dxe6 {[%clk 0:00:07]}  Re3+ {[%clk 0:00:26]} 50. Kf2 {[%clk 0:00:07]}  b3 {[%clk 0:00:25]} 51. Rf5 {[%clk 0:00:05]}  Bh6 {[%clk 0:00:23]} 52. Rf7+ {[%clk 0:00:05]}  Kg6 {[%clk 0:00:23]} 53. Ra6 {[%clk 0:00:05]}  Rc3 {[%clk 0:00:17]} 54. Rf3 {[%clk 0:00:04]}  Rc2+ {[%clk 0:00:17]} 55. Kg3 {[%clk 0:00:04]}  h4+ {[%clk 0:00:17]} 56. Kxh4 {[%clk 0:00:03]}  Bg5+ {[%clk 0:00:18]} 57. Kg4 {[%clk 0:00:03]}  Rc4+ {[%clk 0:00:18]} 58. Kg3 {[%clk 0:00:03]}  Kh5 {[%clk 0:00:18]} 59. Kg2 {[%clk 0:00:03]}  Re4 {[%clk 0:00:18]} 60. Rxb3 {[%clk 0:00:03]}  Re2+ {[%clk 0:00:19]} 61. Kf3 {[%clk 0:00:03]}  Re1 {[%clk 0:00:19]} 62. Rb5 {[%clk 0:00:03]}  Rf1+ {[%clk 0:00:19]} 63. Kg2 {[%clk 0:00:04]}  Re1 {[%clk 0:00:09]} 64. Raa5 {[%clk 0:00:05]}  Rxe6 {[%clk 0:00:09]} 65. Rxg5+ {[%clk 0:00:05]}  Kh6 {[%clk 0:00:09]} 66. Rg4 {[%clk 0:00:06]}  Re2+ {[%clk 0:00:09]} 67. Kf3 {[%clk 0:00:06]}  Rb2 {[%clk 0:00:10]} 68. Re4 {[%clk 0:00:06]}  Rb3+ {[%clk 0:00:09]} 69. Kg4 {[%clk 0:00:07]}  Rb6 {[%clk 0:00:09]} 70. Rc5 {[%clk 0:00:07]}  Kg6 {[%clk 0:00:08]} 71. Rec4 {[%clk 0:00:07]}  Rb1 {[%clk 0:00:08]} 72. Rc6+ {[%clk 0:00:08]}  Kf7 {[%clk 0:00:09]} 73. Rd4 {[%clk 0:00:08]}  Ke7 {[%clk 0:00:09]} 74. Rc3 {[%clk 0:00:08]}  Rg1+ {[%clk 0:00:09]} 75. Kf3 {[%clk 0:00:08]}  Rh1 {[%clk 0:00:09]} 76. Ke4 {[%clk 0:00:07]}  Re1+ {[%clk 0:00:08]} 77. Kd5 {[%clk 0:00:08]}  Rg1 {[%clk 0:00:07]} 78. Rc7+ {[%clk 0:00:08]}  Kf6 {[%clk 0:00:07]} 79. Rc6+ {[%clk 0:00:08]}  Ke7 {[%clk 0:00:07]} 80. Re4+ {[%clk 0:00:08]}  Kd7 {[%clk 0:00:07]} 81. Rh6 {[%clk 0:00:08]}  Rd1+ {[%clk 0:00:07]} 82. Ke5 {[%clk 0:00:08]}  Rg1 {[%clk 0:00:05]} 83. Rg4 {[%clk 0:00:09]}  Re1+ {[%clk 0:00:05]} 84. Kf5 {[%clk 0:00:09]}  Rf1+ {[%clk 0:00:06]} 85. Kg5 {[%clk 0:00:09]}  Rf7 {[%clk 0:00:06]} 86. Kh4 {[%clk 0:00:09]}  Rf1 {[%clk 0:00:06]} 87. Rg7+ {[%clk 0:00:08]}  Ke8 {[%clk 0:00:06]} 88. Rh8+ {[%clk 0:00:09]}  Rf8 {[%clk 0:00:07]} 89. Rxf8+ {[%clk 0:00:09]}  Kxf8 {[%clk 0:00:08]} 90. Rg4 {[%clk 0:00:10]} 1-0


[Site "https://www.chess.com"]

[Event "Titled Tuesday Blitz April 19 Late 2022"]
[White "Ivanisevic, Ivan"]
[Black "Sliwicki, Damian"]
[WhiteFideId "912417"]
[BlackFideId "1127128"]
[WhiteElo "2495"]
[BlackElo "2084"]
[Result "1-0"]
[Round "01"]
[TimeControl "180+1"]
[Date "2022.04.19"]
[WhiteClock "0:00:32"]
[BlackClock "0:00:15"]

1. d4 {[%clk 0:02:59]}  Nf6 {[%clk 0:02:37]} 2. c4 {[%clk 0:02:59]}  g6 {[%clk 0:02:12]} 3. Nc3 {[%clk 0:02:59]}  d5 {[%clk 0:02:06]} 4. h4 {[%clk 0:03:00]}  h5 {[%clk 0:02:05]} 5. Bg5 {[%clk 0:02:55]}  dxc4 {[%clk 0:01:55]} 6. e4 {[%clk 0:02:54]}  Bg7 {[%clk 0:01:51]} 7. Bxc4 {[%clk 0:02:52]}  Nc6 {[%clk 0:01:48]} 8. e5 {[%clk 0:02:50]}  Nd7 {[%clk 0:01:44]} 9. Nge2 {[%clk 0:02:29]}  Nb6 {[%clk 0:01:41]} 10. Bb3 {[%clk 0:02:28]}  Bg4 {[%clk 0:01:37]} 11. f3 {[%clk 0:02:27]}  Bf5 {[%clk 0:01:27]} 12. Ne4 {[%clk 0:02:12]}  Bxe4 {[%clk 0:01:22]} 13. fxe4 {[%clk 0:02:13]}  Na5 {[%clk 0:01:16]} 14. O-O {[%clk 0:02:10]}  Nxb3 {[%clk 0:01:12]} 15. Qxb3 {[%clk 0:02:10]}  O-O {[%clk 0:01:12]} 16. Rad1 {[%clk 0:02:08]}  Qd7 {[%clk 0:01:10]} 17. Nf4 {[%clk 0:02:04]}  Kh7 {[%clk 0:01:07]} 18. e6 {[%clk 0:02:01]}  Bxd4+ {[%clk 0:00:53]} 19. Kh1 {[%clk 0:01:53]}  fxe6 {[%clk 0:00:52]} 20. Nxe6 {[%clk 0:01:39]}  Rxf1+ {[%clk 0:00:53]} 21. Rxf1 {[%clk 0:01:39]}  Bf6 {[%clk 0:00:45]} 22. e5 {[%clk 0:01:38]}  Bxe5 {[%clk 0:00:32]} 23. Rf7+ {[%clk 0:00:45]}  Kh8 {[%clk 0:00:31]} 24. Nf8 {[%clk 0:00:41]}  Bg7 {[%clk 0:00:24]} 25. Nxd7 {[%clk 0:00:39]}  Nxd7 {[%clk 0:00:25]} 26. Qxb7 {[%clk 0:00:34]}  Rb8 {[%clk 0:00:23]} 27. Qxc7 {[%clk 0:00:34]}  Rxb2 {[%clk 0:00:20]} 28. Rxg7 {[%clk 0:00:33]}  Rb1+ {[%clk 0:00:15]} 29. Kh2 {[%clk 0:00:32]} 1-0


[Site "https://www.chess.com"]

[Event "Titled Tuesday Blitz April 19 Late 2022"]
[White "Jacobson, Aaron"]
[Black "Andreikin, Dmitry"]
[WhiteFideId "2089912"]
[BlackFideId "4158814"]
[WhiteElo "2265"]
[BlackElo "2736"]
[Result "1/2-1/2"]
[Round "01"]
[TimeControl "180+1"]
[Date "2022.04.19"]
[WhiteClock "0:00:07"]
[BlackClock "0:00:30"]

1. e4 {[%clk 0:03:00]}  c5 {[%clk 0:02:57]} 2. Nf3 {[%clk 0:03:00]}  e6 {[%clk 0:02:57]} 3. d4 {[%clk 0:03:00]}  cxd4 {[%clk 0:02:58]} 4. Bg5 {[%clk 0:03:01]}  Qc7 {[%clk 0:02:54]} 5. Nxd4 {[%clk 0:02:57]}  a6 {[%clk 0:02:53]} 6. Nc3 {[%clk 0:02:57]}  Nc6 {[%clk 0:02:52]} 7. Nxc6 {[%clk 0:02:57]}  Qxc6 {[%clk 0:02:51]} 8. Bd3 {[%clk 0:02:57]}  Be7 {[%clk 0:02:45]} 9. Bxe7 {[%clk 0:02:56]}  Nxe7 {[%clk 0:02:46]} 10. O-O {[%clk 0:02:54]}  O-O {[%clk 0:02:45]} 11. e5 {[%clk 0:02:50]}  Qc7 {[%clk 0:02:43]} 12. Qh5 {[%clk 0:02:43]}  Ng6 {[%clk 0:02:42]} 13. Rae1 {[%clk 0:02:41]}  b5 {[%clk 0:02:40]} 14. Ne4 {[%clk 0:02:32]}  h6 {[%clk 0:02:20]} 15. Nf6+ {[%clk 0:02:24]}  gxf6 {[%clk 0:02:20]} 16. Bxg6 {[%clk 0:02:06]}  Kg7 {[%clk 0:02:07]} 17. exf6+ {[%clk 0:02:02]}  Kxf6 {[%clk 0:02:08]} 18. Qxh6 {[%clk 0:02:00]}  Ke7 {[%clk 0:02:08]} 19. Be4 {[%clk 0:01:16]}  Bb7 {[%clk 0:02:08]} 20. Bxb7 {[%clk 0:01:14]}  Qxb7 {[%clk 0:02:09]} 21. f4 {[%clk 0:01:13]}  Rg8 {[%clk 0:01:41]} 22. Qh4+ {[%clk 0:00:59]}  Kd6 {[%clk 0:01:36]} 23. Rf2 {[%clk 0:00:55]}  Qd5 {[%clk 0:01:28]} 24. f5 {[%clk 0:00:44]}  Kc6 {[%clk 0:01:28]} 25. Qh5 {[%clk 0:00:27]}  Kb6 {[%clk 0:00:56]} 26. Rd1 {[%clk 0:00:24]}  Qe5 {[%clk 0:00:44]} 27. Qxf7 {[%clk 0:00:21]}  Rg7 {[%clk 0:00:43]} 28. Qh5 {[%clk 0:00:11]}  Rh8 {[%clk 0:00:43]} 29. Qxh8 {[%clk 0:00:08]}  Rxg2+ {[%clk 0:00:44]} 30. Kxg2 {[%clk 0:00:09]}  Qxh8 {[%clk 0:00:45]} 31. f6 {[%clk 0:00:09]}  Qh5 {[%clk 0:00:39]} 32. Rdf1 {[%clk 0:00:07]}  Qf7 {[%clk 0:00:37]} 33. Kh1 {[%clk 0:00:07]}  e5 {[%clk 0:00:37]} 34. h3 {[%clk 0:00:06]}  d5 {[%clk 0:00:36]} 35. Rg1 {[%clk 0:00:06]}  e4 {[%clk 0:00:35]} 36. Rg7 {[%clk 0:00:07]}  Qf8 {[%clk 0:00:33]} 37. f7 {[%clk 0:00:06]}  e3 {[%clk 0:00:34]} 38. Rf6+ {[%clk 0:00:05]}  Ka5 {[%clk 0:00:34]} 39. Rg8 {[%clk 0:00:06]}  e2 {[%clk 0:00:31]} 40. Rxf8 {[%clk 0:00:06]}  e1=Q+ {[%clk 0:00:31]} 41. Kg2 {[%clk 0:00:06]}  Qe4+ {[%clk 0:00:31]} 42. Rf3 {[%clk 0:00:07]}  Qxc2+ {[%clk 0:00:30]} 43. Rf2 {[%clk 0:00:06]}  Qe4+ {[%clk 0:00:30]} 44. Kh2 {[%clk 0:00:06]}  Qe5+ {[%clk 0:00:30]} 45. Kh1 {[%clk 0:00:05]}  Qe1+ {[%clk 0:00:29]} 46. Kg2 {[%clk 0:00:06]}  Qe4+ {[%clk 0:00:29]} 47. Kh2 {[%clk 0:00:05]}  Qe5+ {[%clk 0:00:30]} 48. Kh1 {[%clk 0:00:06]}  Qe1+ {[%clk 0:00:29]} 49. Kg2 {[%clk 0:00:07]}  Qe4+ {[%clk 0:00:30]} 1/2-1/2


[Site "https://www.chess.com"]

[Event "Titled Tuesday Blitz April 19 Late 2022"]
[White "Janaszak, Dawid"]
[Black "Girsh, Daniel"]
[WhiteFideId "1119206"]
[BlackFideId "30949190"]
[WhiteElo "2199"]
[BlackElo "2315"]
[Result "1-0"]
[Round "01"]
[TimeControl "180+1"]
[Date "2022.04.19"]
[WhiteClock "0:00:32"]
[BlackClock "0:00:03"]

1. e4 {[%clk 0:03:00]}  c5 {[%clk 0:02:59]} 2. Nc3 {[%clk 0:02:57]}  d6 {[%clk 0:02:59]} 3. f4 {[%clk 0:02:56]}  g6 {[%clk 0:02:59]} 4. Nf3 {[%clk 0:02:57]}  Bg7 {[%clk 0:02:59]} 5. Bc4 {[%clk 0:02:57]}  Nc6 {[%clk 0:02:57]} 6. O-O {[%clk 0:02:57]}  e6 {[%clk 0:02:56]} 7. d4 {[%clk 0:02:53]}  cxd4 {[%clk 0:02:50]} 8. Nb5 {[%clk 0:02:52]}  Nge7 {[%clk 0:02:48]} 9. Bb3 {[%clk 0:02:51]}  O-O {[%clk 0:02:47]} 10. Nbxd4 {[%clk 0:02:51]}  Na5 {[%clk 0:02:42]} 11. c3 {[%clk 0:02:44]}  Nxb3 {[%clk 0:02:38]} 12. axb3 {[%clk 0:02:45]}  d5 {[%clk 0:02:35]} 13. e5 {[%clk 0:02:45]}  Nc6 {[%clk 0:02:34]} 14. Be3 {[%clk 0:02:45]}  a6 {[%clk 0:02:28]} 15. Qe1 {[%clk 0:02:43]}  Bd7 {[%clk 0:02:23]} 16. b4 {[%clk 0:02:43]}  Re8 {[%clk 0:02:19]} 17. Kh1 {[%clk 0:02:42]}  Rc8 {[%clk 0:02:18]} 18. g4 {[%clk 0:02:39]}  f6 {[%clk 0:02:15]} 19. Qg3 {[%clk 0:02:30]}  Qc7 {[%clk 0:02:07]} 20. Nxc6 {[%clk 0:02:05]}  Bxc6 {[%clk 0:02:07]} 21. Bd4 {[%clk 0:02:05]}  Rf8 {[%clk 0:02:01]} 22. Rfe1 {[%clk 0:02:02]}  fxe5 {[%clk 0:01:59]} 23. Nxe5 {[%clk 0:02:00]}  Bxe5 {[%clk 0:01:52]} 24. Rxe5 {[%clk 0:02:01]}  Rf7 {[%clk 0:01:47]} 25. Rae1 {[%clk 0:01:55]}  Rcf8 {[%clk 0:01:46]} 26. f5 {[%clk 0:01:49]}  exf5 {[%clk 0:01:29]} 27. gxf5 {[%clk 0:01:50]}  Rf6 {[%clk 0:01:08]} 28. Re7 {[%clk 0:01:21]}  Qxg3 {[%clk 0:01:06]} 29. hxg3 {[%clk 0:01:22]}  R6f7 {[%clk 0:00:42]} 30. f6 {[%clk 0:01:23]}  Rxe7 {[%clk 0:00:40]} 31. fxe7 {[%clk 0:01:23]}  Re8 {[%clk 0:00:38]} 32. Kh2 {[%clk 0:01:22]}  Kf7 {[%clk 0:00:37]} 33. Bc5 {[%clk 0:01:23]}  Bb5 {[%clk 0:00:31]} 34. g4 {[%clk 0:01:17]}  h6 {[%clk 0:00:27]} 35. Kg3 {[%clk 0:01:18]}  Kf6 {[%clk 0:00:24]} 36. Kf4 {[%clk 0:01:13]}  g5+ {[%clk 0:00:23]} 37. Kg3 {[%clk 0:01:14]}  Kg6 {[%clk 0:00:20]} 38. Rh1 {[%clk 0:01:13]}  Bd3 {[%clk 0:00:18]} 39. Rh2 {[%clk 0:01:10]}  Be4 {[%clk 0:00:19]} 40. Rf2 {[%clk 0:01:11]}  Kg7 {[%clk 0:00:16]} 41. Bd4+ {[%clk 0:01:02]}  Kg8 {[%clk 0:00:15]} 42. Bc5 {[%clk 0:00:59]}  Kg7 {[%clk 0:00:16]} 43. Re2 {[%clk 0:00:59]}  Kf7 {[%clk 0:00:14]} 44. c4 {[%clk 0:00:58]}  Ke6 {[%clk 0:00:12]} 45. b3 {[%clk 0:00:55]}  Ke5 {[%clk 0:00:12]} 46. Rf2 {[%clk 0:00:52]}  Bg6 {[%clk 0:00:10]} 47. Re2+ {[%clk 0:00:50]}  Be4 {[%clk 0:00:09]} 48. Rh2 {[%clk 0:00:50]}  d4 {[%clk 0:00:05]} 49. Kf2 {[%clk 0:00:46]}  d3 {[%clk 0:00:02]} 50. Ke3 {[%clk 0:00:46]}  b6 {[%clk 0:00:01]} 51. Bd4+ {[%clk 0:00:45]}  Ke6 {[%clk 0:00:01]} 52. Rxh6+ {[%clk 0:00:44]}  Kf7 {[%clk 0:00:01]} 53. Kxe4 {[%clk 0:00:43]}  d2 {[%clk 0:00:02]} 54. Rh7+ {[%clk 0:00:37]}  Kg6 {[%clk 0:00:01]} 55. Rh1 {[%clk 0:00:34]}  Rxe7+ {[%clk 0:00:02]} 56. Be5 {[%clk 0:00:34]}  Rd7 {[%clk 0:00:01]} 57. Rd1 {[%clk 0:00:34]}  Kf7 {[%clk 0:00:02]} 58. c5 {[%clk 0:00:33]}  Ke6 {[%clk 0:00:02]} 59. c6 {[%clk 0:00:32]}  Rb7 {[%clk 0:00:03]} 60. cxb7 {[%clk 0:00:32]} 1-0


[Site "https://www.chess.com"]

[Event "Titled Tuesday Blitz April 19 Late 2022"]
[White "Jimenez Fernandez, Rebeca"]
[Black "Ezat, Mohamed"]
[WhiteFideId "32070934"]
[BlackFideId "10600906"]
[WhiteElo "1853"]
[BlackElo "2386"]
[Result "0-1"]
[Round "01"]
[TimeControl "180+1"]
[Date "2022.04.19"]
[WhiteClock "0:01:07"]
[BlackClock "0:01:34"]

1. e4 {[%clk 0:03:00]}  Nf6 {[%clk 0:02:58]} 2. e5 {[%clk 0:03:00]}  Nd5 {[%clk 0:02:51]} 3. d4 {[%clk 0:03:00]}  d6 {[%clk 0:02:49]} 4. c4 {[%clk 0:03:01]}  Nb6 {[%clk 0:02:49]} 5. exd6 {[%clk 0:03:02]}  exd6 {[%clk 0:02:47]} 6. Nc3 {[%clk 0:03:02]}  Be7 {[%clk 0:02:46]} 7. Be3 {[%clk 0:03:01]}  O-O {[%clk 0:02:46]} 8. b3 {[%clk 0:02:59]}  Bf6 {[%clk 0:02:45]} 9. Rc1 {[%clk 0:02:58]}  Re8 {[%clk 0:02:44]} 10. Nge2 {[%clk 0:02:53]}  Bg4 {[%clk 0:02:42]} 11. h3 {[%clk 0:02:49]}  Bh5 {[%clk 0:02:42]} 12. g4 {[%clk 0:02:44]}  Bg6 {[%clk 0:02:41]} 13. Bg2 {[%clk 0:02:45]}  Bg5 {[%clk 0:02:39]} 14. Bxg5 {[%clk 0:02:28]}  Qxg5 {[%clk 0:02:38]} 15. O-O {[%clk 0:02:29]}  Nc6 {[%clk 0:02:37]} 16. f4 {[%clk 0:02:28]}  Qh4 {[%clk 0:02:24]} 17. f5 {[%clk 0:02:27]}  Re3 {[%clk 0:02:11]} 18. fxg6 {[%clk 0:02:26]}  hxg6 {[%clk 0:02:10]} 19. Qe1 {[%clk 0:02:22]}  Qe7 {[%clk 0:02:08]} 20. Qf2 {[%clk 0:02:18]}  Re8 {[%clk 0:02:07]} 21. Nd5 {[%clk 0:02:16]}  Nxd5 {[%clk 0:02:03]} 22. Bxd5 {[%clk 0:02:07]}  Rxe2 {[%clk 0:01:57]} 23. Qxf7+ {[%clk 0:02:05]}  Kh7 {[%clk 0:01:54]} 24. Rf2 {[%clk 0:01:30]}  Qe3 {[%clk 0:01:41]} 25. Bxc6 {[%clk 0:01:16]}  Qxc1+ {[%clk 0:01:36]} 26. Rf1 {[%clk 0:01:14]}  Qe3+ {[%clk 0:01:36]} 27. Kh1 {[%clk 0:01:07]}  Qxh3+ {[%clk 0:01:34]} 0-1


[Site "https://www.chess.com"]

[Event "Titled Tuesday Blitz April 19 Late 2022"]
[White "Kaasen, Tor Fredrik"]
[Black "Jaskolka, Tomasz"]
[WhiteFideId "1516647"]
[BlackFideId "1170791"]
[WhiteElo "2335"]
[BlackElo "2073"]
[Result "1-0"]
[Round "01"]
[TimeControl "180+1"]
[Date "2022.04.19"]
[WhiteClock "0:01:29"]
[BlackClock "0:00:34"]

1. e4 {[%clk 0:02:59]}  c5 {[%clk 0:03:00]} 2. Nf3 {[%clk 0:02:59]}  e6 {[%clk 0:02:59]} 3. d4 {[%clk 0:02:59]}  cxd4 {[%clk 0:03:00]} 4. Nxd4 {[%clk 0:02:59]}  Nc6 {[%clk 0:03:01]} 5. Nc3 {[%clk 0:02:59]}  Qc7 {[%clk 0:03:01]} 6. g3 {[%clk 0:02:59]}  a6 {[%clk 0:02:52]} 7. Bg2 {[%clk 0:02:59]}  Nf6 {[%clk 0:02:52]} 8. O-O {[%clk 0:03:00]}  Nxd4 {[%clk 0:02:52]} 9. Qxd4 {[%clk 0:03:01]}  Bc5 {[%clk 0:02:53]} 10. Bf4 {[%clk 0:03:01]}  d6 {[%clk 0:02:51]} 11. Qd2 {[%clk 0:03:02]}  h6 {[%clk 0:02:49]} 12. Rad1 {[%clk 0:03:02]}  e5 {[%clk 0:02:48]} 13. Be3 {[%clk 0:03:03]}  Bb4 {[%clk 0:02:33]} 14. Nb5 {[%clk 0:03:01]}  axb5 {[%clk 0:02:33]} 15. Qxb4 {[%clk 0:03:01]}  Rxa2 {[%clk 0:02:34]} 16. Rxd6 {[%clk 0:03:00]}  O-O {[%clk 0:02:22]} 17. Rd2 {[%clk 0:03:01]}  Be6 {[%clk 0:02:19]} 18. f3 {[%clk 0:02:56]}  Rfa8 {[%clk 0:02:13]} 19. Rfd1 {[%clk 0:02:54]}  Qc4 {[%clk 0:02:05]} 20. c3 {[%clk 0:02:52]}  Qxb4 {[%clk 0:01:52]} 21. cxb4 {[%clk 0:02:53]}  Bb3 {[%clk 0:01:52]} 22. Rc1 {[%clk 0:02:31]}  Bc4 {[%clk 0:01:51]} 23. Bf1 {[%clk 0:02:21]}  Ra1 {[%clk 0:01:50]} 24. Rdd1 {[%clk 0:02:22]}  Rxc1 {[%clk 0:01:47]} 25. Rxc1 {[%clk 0:02:23]}  Ra2 {[%clk 0:01:29]} 26. Bxc4 {[%clk 0:02:02]}  bxc4 {[%clk 0:01:29]} 27. Rxc4 {[%clk 0:01:55]}  Rxb2 {[%clk 0:01:29]} 28. Rc8+ {[%clk 0:01:54]}  Kh7 {[%clk 0:01:29]} 29. Rc7 {[%clk 0:01:55]}  Rxb4 {[%clk 0:01:21]} 30. Rxf7 {[%clk 0:01:56]}  b5 {[%clk 0:01:21]} 31. Bc5 {[%clk 0:01:53]}  Rb2 {[%clk 0:01:16]} 32. Bd6 {[%clk 0:01:50]}  Kg6 {[%clk 0:00:57]} 33. Rb7 {[%clk 0:01:46]}  Rb3 {[%clk 0:00:57]} 34. Kg2 {[%clk 0:01:37]}  Rb2+ {[%clk 0:00:57]} 35. Kh3 {[%clk 0:01:38]}  Rb3 {[%clk 0:00:58]} 36. Bf8 {[%clk 0:01:38]}  Rxf3 {[%clk 0:00:47]} 37. Rxg7+ {[%clk 0:01:38]}  Kh5 {[%clk 0:00:48]} 38. Kg2 {[%clk 0:01:31]}  Re3 {[%clk 0:00:37]} 39. h3 {[%clk 0:01:31]}  Nxe4 {[%clk 0:00:34]} 40. g4+ {[%clk 0:01:27]}  Kh4 {[%clk 0:00:34]} 41. Be7+ {[%clk 0:01:27]}  Ng5 {[%clk 0:00:34]} 42. Bxg5+ {[%clk 0:01:28]}  hxg5 {[%clk 0:00:34]} 43. Rh7# {[%clk 0:01:29]} 1-0


[Site "https://www.chess.com"]

[Event "Titled Tuesday Blitz April 19 Late 2022"]
[White "Kalogridis, Antonios"]
[Black "Leiva, Gianmarco"]
[WhiteFideId "25833901"]
[BlackFideId "3804399"]
[WhiteElo "1596"]
[BlackElo "2323"]
[Result "0-1"]
[Round "01"]
[TimeControl "180+1"]
[Date "2022.04.19"]
[WhiteClock "0:00:01"]
[BlackClock "0:00:22"]

1. d4 {[%clk 0:03:00]}  Nf6 {[%clk 0:02:58]} 2. c4 {[%clk 0:03:00]}  e6 {[%clk 0:02:58]} 3. Nc3 {[%clk 0:02:59]}  Bb4 {[%clk 0:02:59]} 4. Bd2 {[%clk 0:02:57]}  O-O {[%clk 0:02:58]} 5. a3 {[%clk 0:02:54]}  Bxc3 {[%clk 0:02:56]} 6. Bxc3 {[%clk 0:02:55]}  d6 {[%clk 0:02:57]} 7. Nf3 {[%clk 0:02:53]}  Nbd7 {[%clk 0:02:57]} 8. e3 {[%clk 0:02:53]}  Ne4 {[%clk 0:02:57]} 9. Qc2 {[%clk 0:02:52]}  f5 {[%clk 0:02:58]} 10. Bd3 {[%clk 0:02:52]}  Nxc3 {[%clk 0:02:57]} 11. Qxc3 {[%clk 0:02:51]}  b6 {[%clk 0:02:57]} 12. O-O {[%clk 0:02:51]}  Bb7 {[%clk 0:02:58]} 13. Rae1 {[%clk 0:02:50]}  Bxf3 {[%clk 0:02:57]} 14. gxf3 {[%clk 0:02:49]}  Qg5+ {[%clk 0:02:56]} 15. Kh1 {[%clk 0:02:49]}  Qh5 {[%clk 0:02:57]} 16. Be2 {[%clk 0:02:45]}  Qh4 {[%clk 0:02:57]} 17. Rg1 {[%clk 0:02:16]}  Qxf2 {[%clk 0:02:55]} 18. Rg2 {[%clk 0:02:06]}  Qh4 {[%clk 0:02:54]} 19. Reg1 {[%clk 0:02:05]}  Rf7 {[%clk 0:02:08]} 20. b4 {[%clk 0:01:58]}  Nf6 {[%clk 0:01:57]} 21. Bd3 {[%clk 0:01:43]}  Qh5 {[%clk 0:01:46]} 22. Rg3 {[%clk 0:01:40]}  Kh8 {[%clk 0:01:44]} 23. d5 {[%clk 0:01:37]}  e5 {[%clk 0:01:43]} 24. Qe1 {[%clk 0:01:30]}  f4 {[%clk 0:01:22]} 25. exf4 {[%clk 0:01:12]}  exf4 {[%clk 0:01:23]} 26. Rg4 {[%clk 0:01:00]}  Nxg4 {[%clk 0:01:22]} 27. Rxg4 {[%clk 0:01:01]}  Qe5 {[%clk 0:01:02]} 28. Qh4 {[%clk 0:01:00]}  h6 {[%clk 0:01:03]} 29. Be4 {[%clk 0:00:50]}  Re8 {[%clk 0:01:02]} 30. Rg6 {[%clk 0:00:47]}  Qa1+ {[%clk 0:00:58]} 31. Kg2 {[%clk 0:00:47]}  Rxe4 {[%clk 0:00:54]} 32. fxe4 {[%clk 0:00:42]}  f3+ {[%clk 0:00:54]} 33. Kh3 {[%clk 0:00:33]}  Qf1+ {[%clk 0:00:42]} 34. Kg4 {[%clk 0:00:32]}  Qg2+ {[%clk 0:00:42]} 35. Kh5 {[%clk 0:00:33]}  Qxg6+ {[%clk 0:00:35]} 36. Kxg6 {[%clk 0:00:32]}  Rf6+ {[%clk 0:00:35]} 37. Kh5 {[%clk 0:00:11]}  f2 {[%clk 0:00:34]} 38. e5 {[%clk 0:00:11]}  dxe5 {[%clk 0:00:34]} 39. Qh3 {[%clk 0:00:03]}  f1=Q {[%clk 0:00:30]} 40. Qc8+ {[%clk 0:00:04]}  Rf8 {[%clk 0:00:23]} 41. Qe6 {[%clk 0:00:02]}  Qf3+ {[%clk 0:00:22]} 42. Kg6 {[%clk 0:00:01]} 0-1


[Site "https://www.chess.com"]